bitfinex/quotes_ETHUSD_20220305
["timestamp","ask_amount","ask_price","bid_price","bid_amount"]
[1646516100735,1.02283615,2669.6,2669.0,4.45100686]
[1646516100935,0.00355396,2669.3,2669.0,4.45100686]
[1646516101936,1.02283615,2669.6,2669.0,4.45100686]
[1646516102141,0.00355396,2669.3,2669.0,4.45100686]
[1646516103177,1.02283615,2669.6,2669.0,4.45100686]
[1646516103480,0.00348629,2669.3,2669.0,4.45100686]
[1646516104277,1.53594469,2669.5,2669.0,4.45100686]
[1646516104478,0.00348629,2669.3,2669.0,4.45100686]
[1646516105481,1.53594469,2669.5,2669.0,4.45100686]
[1646516105680,0.00348629,2669.3,2669.0,4.45100686]
[1646516106731,0.82553318,2669.5,2669.0,4.45100686]
[1646516106932,0.00102345,2669.7,2669.2,0.3743]
[1646516107131,0.01321855,2669.7,2669.3,4.4143]
[1646516107338,0.01321855,2669.7,2669.5,0.3743]
[1646516107530,1.855e-05,2669.7,2669.6,4.4143]
[1646516107731,0.0190962,2670.4,2670.2,0.96502946]
[1646516107931,0.0190962,2670.4,2670.3,0.54]
[1646516108729,0.0190962,2670.4,2670.3,4.03686693]
[1646516109231,0.0190962,2670.4,2670.3,5.03686693]
[1646516113628,0.0190962,2670.4,2670.3,5.03183876]
[1646516115432,0.0190962,2670.4,2670.3,1.53183876]
[1646516115832,0.0190962,2670.4,2670.3,0.53183876]
[1646516116234,0.0190962,2670.4,2670.0,4.04]
[1646516116632,1.04132586,2670.2,2670.0,3.5]
[1646516117278,1.04132586,2670.2,2669.8,1.2031]
[1646516117681,1.04132586,2670.2,2669.7,2.46559277]
[1646516117884,1.04509494,2670.2,2669.7,2.46559277]
[1646516118081,1.04509494,2670.2,2669.7,0.08989277]
[1646516118482,1.04509494,2670.2,2669.7,3.58989277]
[1646516118781,1.04132586,2670.2,2669.7,4.58989277]
[1646516118983,0.00376921,2670.1,2669.7,4.58989277]
[1646516119582,0.00376921,2670.1,2669.7,5.52659277]
[1646516119984,1.04132586,2670.2,2669.7,5.52659277]
[1646516120184,0.00376925,2670.0,2669.7,5.52659277]
[1646516121134,0.0190962,2670.4,2669.7,5.52659277]
[1646516121336,0.00376929,2670.0,2669.7,6.73769277]
[1646516122335,0.00102345,2670.2,2669.7,6.73769277]
[1646516122537,0.00364491,2670.0,2669.7,6.73769277]
[1646516122736,0.00364491,2670.0,2669.7,5.73769277]
[1646516122940,0.00364491,2670.0,2669.7,1.30099277]
[1646516123144,0.00364491,2670.0,2669.1,4.04364607]
[1646516123339,0.00364491,2670.0,2669.9,0.00279831]
[1646516123537,0.00490451,2669.8,2669.3,3.5]
[1646516124037,0.00854946,2669.8,2669.3,3.5]
[1646516124238,0.00854946,2669.8,2669.4,0.89031614]
[1646516124883,0.00490451,2669.8,2669.4,0.89031614]
[1646516125081,0.00854948,2669.8,2669.4,0.89031614]
[1646516125882,0.00490451,2669.8,2669.5,3.5]
[1646516126283,0.00842298,2669.8,2669.5,4.5]
[1646516127085,0.00490451,2669.8,2669.5,4.5]
[1646516127487,0.00842301,2669.8,2669.5,4.5]
[1646516129736,0.00490451,2669.8,2669.5,4.5]
[1646516129938,0.00842864,2669.8,2669.5,4.5]
[1646516130841,0.00490451,2669.8,2669.5,4.5]
[1646516131039,0.00842864,2669.8,2669.5,4.5]
[1646516132039,0.00490451,2669.8,2669.5,4.5]
[1646516132277,0.00636069,2669.8,2669.5,4.5]
[1646516133081,0.00490451,2669.8,2669.5,4.5]
[1646516133490,0.00842826,2669.8,2669.5,4.5]
[1646516134384,0.00490451,2669.8,2669.5,4.5]
[1646516134586,0.00842826,2669.8,2669.5,4.5]
[1646516135186,0.00842826,2669.8,2669.6,0.54]
[1646516135385,0.00842826,2669.8,2669.7,3.5]
[1646516135596,0.00490451,2669.8,2669.7,3.5]
[1646516135786,0.00842829,2669.8,2669.7,5.04]
[1646516136036,0.00842829,2669.8,2669.7,4.04]
[1646516136237,0.00842829,2669.8,2669.7,5.04]
[1646516136834,0.00490451,2669.8,2669.7,5.04]
[1646516139243,0.00490451,2669.8,2669.7,1.0]
[1646516139641,0.00490451,2669.8,2669.6,1.1892]
[1646516139884,0.00490451,2669.8,2669.5,4.5]
[1646516140685,0.00867038,2669.8,2669.5,4.5]
[1646516141489,0.00490451,2669.8,2669.5,5.6882]
[1646516141887,0.00867038,2669.8,2669.5,5.6882]
[1646516142687,0.00490451,2669.8,2669.5,5.6882]
[1646516142987,0.00867038,2669.8,2669.5,5.6882]
[1646516143389,0.00867038,2669.8,2669.5,5.680054]
[1646516144031,0.00490451,2669.8,2669.5,5.680054]
[1646516144234,0.00636069,2669.8,2669.5,5.680054]
[1646516145036,0.00490451,2669.8,2669.5,5.680054]
[1646516145437,0.00854311,2669.8,2669.5,5.680054]
[1646516146442,0.00490451,2669.8,2669.5,5.680054]
[1646516146645,0.00854311,2669.8,2669.5,5.680054]
[1646516147479,0.00490451,2669.8,2669.5,5.680054]
[1646516147687,0.00636069,2669.8,2669.5,5.680054]
[1646516148685,0.00490451,2669.8,2669.5,5.680054]
[1646516149091,0.0084138,2669.8,2669.5,5.680054]
[1646516149288,0.0084138,2669.8,2669.5,4.491854]
[1646516149591,1.53566714,2669.7,2669.5,1.0]
[1646516149785,1.53566714,2669.7,2669.4,1.229]
[1646516149988,1.53566714,2669.7,2669.4,3.5]
[1646516150186,1.53566714,2669.7,2669.2,3.5]
[1646516150387,1.53566714,2669.7,2669.4,1.0]
[1646516150587,1.53566714,2669.7,2669.4,4.5]
[1646516151033,0.00841377,2669.8,2669.4,4.5]
[1646516151235,0.00490451,2669.8,2669.4,5.43682]
[1646516151434,0.00841374,2669.8,2669.4,6.66582]
[1646516152239,0.00841374,2669.8,2669.4,7.20582]
[1646516152441,0.00490451,2669.8,2669.4,7.20582]
[1646516152641,0.00847662,2669.8,2669.4,7.20582]
[1646516153639,0.00490451,2669.8,2669.4,7.20582]
[1646516153841,0.00847662,2669.8,2669.4,7.20582]
[1646516154795,0.00490451,2669.8,2669.4,7.20582]
[1646516154986,0.00825182,2669.8,2669.4,7.20582]
[1646516155986,0.00490451,2669.8,2669.4,7.20582]
[1646516156187,0.00819044,2669.8,2669.4,7.20582]
[1646516157188,0.00490451,2669.8,2669.4,7.20582]
[1646516157391,1.53562329,2669.7,2669.4,7.20582]
[1646516157590,1.53562329,2669.7,2669.4,6.269]
[1646516157789,1.53562329,2669.7,2669.4,4.04]
[1646516158089,1.53562329,2669.7,2669.1,3.2572868]
[1646516158290,1.53562329,2669.7,2669.1,1.1895868]
[1646516158536,1.53562329,2669.7,2669.1,1.1863]
[1646516159340,1.09192357,2669.5,2669.1,1.1863]
[1646516159541,1.53562329,2669.4,2669.1,1.1863]
[1646516159942,1.53562329,2669.4,2669.1,0.00331552]
[1646516160343,0.00821916,2669.8,2669.1,0.00331552]
[1646516160541,1.53577796,2669.7,2669.1,0.00331552]
[1646516160740,1.53577796,2669.7,2669.1,3.5]
[1646516161142,1.53577796,2669.7,2669.1,4.50331555]
[1646516161545,1.53577796,2669.7,2669.4,0.99791739]
[1646516162144,1.53577796,2669.7,2669.5,3.5]
[1646516162391,1.53577796,2669.7,2669.4,0.99791739]
[1646516164192,1.53577796,2669.7,2669.4,4.49791739]
[1646516164391,1.53577796,2669.7,2669.4,0.99791739]
[1646516164602,1.53577796,2669.7,2669.5,4.04]
[1646516164791,1.53577796,2669.7,2669.5,1.54]
[1646516164991,1.53577796,2669.7,2669.5,5.04]
[1646516165192,1.53577796,2669.7,2669.5,1.54]
[1646516165390,1.53577796,2669.7,2669.5,5.04]
[1646516165591,1.53577796,2669.7,2669.6,3.5]
[1646516165791,1.53426926,2669.7,2669.6,3.5]
[1646516166035,1.53426926,2669.7,2669.6,4.5]
[1646516171192,0.00821464,2669.8,2669.6,4.5]
[1646516171392,0.00821464,2669.8,2669.7,3.5]
[1646516171593,0.00490451,2669.8,2669.7,3.5]
[1646516171795,0.00821467,2669.8,2669.7,4.5]
[1646516172094,0.00821467,2669.8,2669.7,3.5]
[1646516172297,0.00821467,2669.8,2669.7,4.5]
[1646516172493,0.00821467,2669.8,2669.7,3.5]
[1646516172693,0.00490451,2669.8,2669.7,4.5]
[1646516173940,0.00490451,2669.8,2669.7,1.0]
[1646516174343,0.00490451,2669.8,2669.6,1.1407]
[1646516174547,0.00490451,2669.8,2669.2,3.5]
[1646516175543,0.00490451,2669.8,2669.2,4.04]
[1646516175544,0.00821458,2669.8,2669.2,4.04]
[1646516175943,0.00821458,2669.8,2669.2,5.04]
[1646516176344,0.00490451,2669.8,2669.2,5.04]
[1646516176744,0.00821458,2669.8,2669.2,5.04]
[1646516176945,0.00821458,2669.8,2669.4,1.22615725]
[1646516177387,0.00821458,2669.8,2669.4,4.72615725]
[1646516177591,0.00490451,2669.8,2669.4,4.72615725]
[1646516177788,0.00821463,2669.8,2669.4,5.72615725]
[1646516178788,0.00490451,2669.8,2669.4,5.72615725]
[1646516178987,0.00490451,2669.8,2669.4,1.0]
[1646516179188,0.00821463,2669.8,2669.2,0.7272]
[1646516179390,0.00821463,2669.8,2669.2,3.6872]
[1646516179787,0.00821463,2669.8,2669.2,3.5]
[1646516179991,0.00490451,2669.8,2669.2,3.5]
[1646516180196,0.64324777,2670.0,2669.2,3.5]
[1646516180391,0.00331008,2669.8,2669.2,3.5]
[1646516181048,1.09623839,2669.6,2669.2,3.49852036]
[1646516181845,1.09623839,2669.6,2669.2,4.5210035]
[1646516182545,0.00331003,2669.8,2669.2,5.5210035]
[1646516183546,0.00103589,2670.3,2669.2,5.5210035]
[1646516183747,0.00331007,2669.8,2669.2,5.5210035]
[1646516184146,0.02865915,2669.8,2669.2,5.5210035]
[1646516184798,0.02534908,2669.8,2669.2,5.5210035]
[1646516185192,0.02865916,2669.8,2669.2,5.5210035]
[1646516185497,0.02865916,2669.8,2669.2,6.0610035]
[1646516185894,1.53576464,2669.7,2669.2,6.0610035]
[1646516188841,1.53576464,2669.7,2669.2,6.2482035]
[1646516189847,1.53576464,2669.7,2669.2,6.0610035]
[1646516195791,0.00205,2669.6,2669.2,6.0610035]
[1646516197952,0.00205,2669.6,2669.3,0.93689]
[1646516198156,0.00205,2669.6,2669.4,3.5]
[1646516198352,0.00205,2669.6,2669.4,4.5]
[1646516198551,0.00205,2669.6,2669.5,3.5]
[1646516198759,0.00205,2669.6,2669.5,1.0]
[1646516199156,0.00205,2669.6,2669.3,5.43689]
[1646516202404,0.00205,2669.6,2669.1,0.00331093]
[1646516202405,3.50205,2669.6,2669.1,0.00331093]
[1646516202603,1.53576464,2669.5,2669.1,0.00331093]
[1646516202805,1.53576464,2669.4,2669.0,1.2004]
[1646516203004,1.53576464,2669.3,2669.0,1.2004]
[1646516203204,1.53576464,2669.2,2669.1,0.00331088]
[1646516203409,1.04694082,2669.2,2669.1,0.00331088]
[1646516203650,2.58153139,2669.2,2669.1,0.00331088]
[1646516204051,2.58153139,2669.2,2668.8,7.93332539]
[1646516204251,1.53576464,2669.1,2669.0,0.00331092]
[1646516204875,1.53576464,2669.5,2669.0,0.00331092]
[1646516205258,1.53576464,2669.5,2668.8,8.93332539]
[1646516205556,1.53576464,2669.5,2668.9,0.003311]
[1646516205963,1.53576464,2669.5,2668.9,0.940341]
[1646516206359,1.53576464,2669.5,2668.9,0.93703]
[1646516206760,1.53576464,2669.5,2669.1,0.0033109]
[1646516207618,1.53576464,2669.5,2668.9,0.93703]
[1646516207819,0.00205,2669.4,2669.1,0.00331086]
[1646516208317,0.00205,2669.4,2669.1,0.90043968]
[1646516208524,0.00205,2669.4,2668.9,0.93703]
[1646516209726,1.53781464,2669.4,2669.0,2.41375]
[1646516210320,1.53781464,2669.4,2669.0,2.41706347]
[1646516210521,0.00205,2669.4,2669.3,1.09379653]
[1646516211451,0.00205,2669.4,2669.2,0.54]
[1646516212057,1.53783437,2669.4,2669.2,0.54]
[1646516212460,1.53783437,2669.4,2669.2,1.71234281]
[1646516214061,0.00205,2669.4,2669.2,1.71234281]
[1646516215101,0.00205,2669.4,2669.3,1.1451]
[1646516215503,1.53784794,2669.4,2669.3,1.1451]
[1646516215701,0.00205,2669.4,2669.2,2.17234281]
[1646516215901,0.00205,2669.4,2669.2,1.17234281]
[1646516219146,1.53785322,2669.4,2669.2,1.17234281]
[1646516219345,0.00205,2669.4,2669.2,1.17234281]
[1646516219949,1.53786984,2669.4,2669.2,1.17234281]
[1646516220150,0.00205,2669.4,2669.2,1.17234281]
[1646516220350,0.00205,2669.4,2669.0,4.51216955]
[1646516220651,1.53788924,2669.4,2669.0,2.68841955]
[1646516220857,1.53788924,2669.4,2669.0,1.6851]
[1646516221151,1.53788924,2669.4,2669.0,1.68841016]
[1646516221753,1.53788924,2669.4,2669.0,2.06271016]
[1646516221957,0.00205,2669.4,2669.0,2.06271016]
[1646516223200,0.00205,2669.4,2669.0,2.9962538]
[1646516223401,0.00205,2669.4,2669.0,2.99956396]
[1646516223602,0.00205,2669.4,2669.0,3.99956396]
[1646516224503,0.00205,2669.4,2669.0,3.9962538]
[1646516224708,0.00205,2669.4,2669.0,3.9995649]
[1646516225505,0.00205,2669.4,2669.0,3.9962538]
[1646516225906,0.00205,2669.4,2669.0,3.9995649]
[1646516226355,0.00205,2669.4,2669.0,3.0627111]
[1646516226554,0.00205,2669.4,2669.0,2.0627111]
[1646516226763,0.00205,2669.4,2669.0,2.0594]
[1646516227156,0.00205,2669.4,2669.0,2.0627111]
[1646516227655,0.00205,2669.4,2669.0,1.6884111]
[1646516228061,1.53785514,2669.4,2669.0,1.6851]
[1646516228257,1.53785514,2669.4,2669.0,1.68841101]
[1646516229263,1.53785514,2669.4,2669.0,1.6851]
[1646516229459,1.53785514,2669.4,2669.0,1.68841101]
[1646516230103,1.53785514,2669.4,2669.0,1.14841101]
[1646516230302,1.53785514,2669.4,2669.0,0.00331101]
[1646516230504,1.53785514,2669.4,2668.7,3.42155]
[1646516230705,1.53785514,2669.4,2669.0,0.00331101]
[1646516231708,1.53785514,2669.4,2668.7,4.23435]
[1646516231911,1.53785514,2669.4,2669.0,0.92178023]
[1646516232907,1.53785514,2669.4,2669.0,0.91846921]
[1646516233109,1.53785514,2669.4,2669.0,0.92178023]
[1646516233553,1.53785514,2669.4,2669.0,1.85869023]
[1646516233852,1.53785514,2669.4,2669.1,0.54]
[1646516235059,0.00205,2669.4,2669.1,0.54]
[1646516235258,0.00205,2669.4,2669.2,3.47928339]
[1646516235459,0.00116007,2669.4,2669.3,0.54]
[1646516253808,1.53698719,2669.4,2669.2,0.1872]
[1646516254009,0.00116007,2669.4,2669.2,0.1872]
[1646516254407,1.53698713,2669.4,2669.2,0.1872]
[1646516254609,1.53584081,2669.3,2669.2,0.1872]
[1646516254807,0.00116007,2669.4,2669.2,0.1872]
[1646516255207,1.5369967,2669.4,2669.2,0.1872]
[1646516255411,1.5369967,2669.4,2669.0,0.00330825]
[1646516255607,1.5369967,2669.4,2668.9,4.47772941]
[1646516255807,1.5369967,2669.4,2669.0,0.00330825]
[1646516256455,1.53594552,2669.4,2669.0,0.00330825]
[1646516256857,0.00010889,2669.4,2668.9,2.47704941]
[1646516257059,0.00010889,2669.4,2669.0,1.19270825]
[1646516257256,0.00010889,2669.4,2669.0,3.06643825]
[1646516257460,0.00010889,2669.4,2669.1,0.54]
[1646516260307,0.00010889,2669.4,2669.1,1.47686]
[1646516265460,0.00010889,2669.4,2669.1,0.54]
[1646516265865,1.53588732,2669.4,2669.1,0.54]
[1646516266059,0.00010889,2669.4,2669.1,0.54]
[1646516266259,1.53590357,2669.4,2669.1,0.54]
[1646516268405,1.53590357,2669.4,2669.1,4.04]
[1646516268805,2.72259159,2669.4,2669.1,4.5]
[1646516269104,1.18679691,2669.4,2669.1,4.5]
[1646516270010,0.00010889,2669.4,2669.1,4.45]
[1646516270206,1.53593236,2669.4,2669.1,4.45]
[1646516271088,1.53593236,2669.4,2669.1,1.0]
[1646516271277,1.53593236,2669.4,2669.0,2.12638]
[1646516271474,1.53593236,2669.4,2669.1,3.5]
[1646516271475,1.48593236,2669.4,2669.1,3.5]
[1646516271675,0.02265143,2669.5,2669.1,3.5]
[1646516271975,0.02265143,2669.5,2669.1,4.5]
[1646516273880,0.00330528,2669.7,2669.1,4.5]
[1646516274904,1.003602,2669.8,2669.1,1.0]
[1646516275108,0.00330535,2669.7,2669.1,1.0]
[1646516275305,0.00330535,2669.7,2669.0,2.12968621]
[1646516276105,1.003602,2669.8,2669.0,2.12638]
[1646516276310,0.00330535,2669.7,2669.0,2.12968621]
[1646516277307,1.003602,2669.8,2669.0,2.12638]
[1646516277507,0.00330535,2669.7,2669.0,2.12968621]
[1646516277709,0.00330535,2669.7,2669.4,1.03372783]
[1646516278565,0.0277839,2669.8,2669.4,1.97058783]
[1646516278752,0.00330542,2669.7,2669.4,1.97058783]
[1646516279652,0.0277839,2669.8,2669.4,1.97058783]
[1646516279859,0.00330541,2669.7,2669.4,1.97058783]
[1646516280257,0.00330541,2669.7,2669.4,1.03372783]
[1646516280757,0.0277839,2669.8,2669.4,1.03372783]
[1646516281168,0.00330541,2669.7,2669.4,1.03372783]
[1646516281356,0.00330541,2669.7,2669.1,0.54]
[1646516281563,0.00330541,2669.7,2669.1,1.54]
[1646516281756,0.00330541,2669.7,2669.1,0.54]
[1646516282158,1.1979845,2669.8,2669.1,0.54]
[1646516282410,0.00330537,2669.7,2669.1,1.64095984]
[1646516282608,0.00330537,2669.7,2669.1,0.54]
[1646516283209,1.1979845,2669.8,2669.1,0.54]
[1646516283614,0.00330723,2669.7,2669.1,1.58575199]
[1646516284413,1.1877939,2669.8,2669.1,1.58575199]
[1646516284617,0.00330723,2669.7,2669.1,1.58575199]
[1646516285614,0.0175933,2669.8,2669.1,1.58575199]
[1646516285817,0.00330901,2669.7,2669.1,1.58575199]
[1646516286867,0.01863138,2669.8,2669.1,1.58575199]
[1646516287164,0.00331405,2669.7,2669.1,1.58575199]
[1646516288168,0.01863138,2669.8,2669.1,1.58575199]
[1646516288365,0.00331405,2669.7,2669.1,1.58575199]
[1646516289263,0.01863138,2669.8,2669.1,1.58575199]
[1646516289471,0.00331886,2669.7,2669.1,1.58575199]
[1646516290509,0.02437386,2669.8,2669.1,1.58575199]
[1646516290710,0.00331859,2669.7,2669.1,1.58575199]
[1646516291711,0.02437386,2669.8,2669.1,1.58575199]
[1646516291913,1.539078,2669.7,2669.1,1.58165299]
[1646516292915,1.53575941,2669.7,2669.1,1.58165299]
[1646516293114,1.53907781,2669.7,2669.1,1.58165299]
[1646516293959,1.53575941,2669.7,2669.1,1.58165299]
[1646516294260,1.53907767,2669.7,2669.1,1.58165299]
[1646516295264,1.53575941,2669.7,2669.1,1.58165299]
[1646516295465,1.53907767,2669.7,2669.1,1.58165299]
[1646516296467,1.53575941,2669.7,2669.1,1.58165299]
[1646516296668,1.53907769,2669.7,2669.1,1.58165299]
[1646516297715,1.53575941,2669.7,2669.1,1.58165299]
[1646516297908,1.53907771,2669.7,2669.1,1.58165299]
[1646516298910,1.53575941,2669.7,2669.1,1.58165299]
[1646516299110,1.53907771,2669.7,2669.1,1.58165299]
[1646516300114,1.53575941,2669.7,2669.1,1.58165299]
[1646516300314,1.5390777,2669.7,2669.1,1.58165299]
[1646516301362,1.53575941,2669.7,2669.1,1.58165299]
[1646516301559,1.5390777,2669.7,2669.1,1.58165299]
[1646516302565,1.53575941,2669.7,2669.1,1.58165299]
[1646516302766,1.5390777,2669.7,2669.1,1.58165299]
[1646516303664,1.53575941,2669.7,2669.1,1.58165299]
[1646516303863,1.5390777,2669.7,2669.1,1.57549276]
[1646516304910,1.53575941,2669.7,2669.1,1.57549276]
[1646516305117,1.5390777,2669.7,2669.1,1.57549276]
[1646516306113,1.53575941,2669.7,2669.1,1.57549276]
[1646516306313,1.5390777,2669.7,2669.6,0.90320106]
[1646516306912,1.5390777,2669.7,2669.1,0.52974077]
[1646516307314,1.53575941,2669.7,2669.1,0.52974077]
[1646516307514,1.5390777,2669.7,2669.1,0.52974077]
[1646516308571,1.53575941,2669.7,2669.6,0.89063116]
[1646516308761,1.5390777,2669.7,2669.6,0.89063116]
[1646516309666,1.53575941,2669.7,2669.6,0.89063116]
[1646516311270,1.53575941,2669.7,2669.1,0.52974077]
[1646516311673,5.03575941,2669.6,2669.0,0.00331927]
[1646516311873,2.22450501,2669.5,2669.0,0.00331927]
[1646516312071,2.22450501,2669.5,2668.6,0.54808556]
[1646516312072,3.5,2669.4,2668.6,0.54808556]
[1646516312325,3.5,2669.4,2668.5,0.1872]
[1646516312326,1.19804163,2668.8,2668.5,0.1872]
[1646516312523,1.53575941,2668.7,2668.5,0.1872]
[1646516312723,1.53575941,2668.6,2668.5,0.1872]
[1646516312927,3.5,2669.2,2668.5,0.1872]
[1646516313123,1.53618944,2669.1,2668.5,0.1872]
[1646516313624,1.53618944,2669.1,2668.7,0.0033192]
[1646516313823,0.95212056,2668.9,2668.7,0.0033192]
[1646516314024,1.53618944,2668.8,2668.7,0.0033192]
[1646516314625,1.53618944,2668.8,2668.5,0.1872]
[1646516314825,1.53618944,2668.8,2668.6,0.0033193]
[1646516315829,1.53618944,2668.8,2668.5,0.1872]
[1646516316069,3.34963507,2669.4,2668.6,0.00331934]
[1646516316259,1.53617904,2669.3,2668.6,0.00331934]
[1646516316459,3.3500895,2669.2,2668.6,0.00331934]
[1646516316659,1.53617904,2669.1,2668.6,0.00331934]
[1646516317059,1.53617904,2669.1,2668.5,0.1872]
[1646516317060,1.53617904,2669.0,2668.5,0.1872]
[1646516317259,1.53617904,2668.9,2668.8,0.00331919]
[1646516317465,1.53617904,2669.0,2668.8,0.00331919]
[1646516318266,1.53617904,2669.0,2668.5,0.1872]
[1646516318468,1.53617904,2669.0,2668.8,0.0033192]
[1646516319468,1.53617904,2669.0,2668.5,0.1872]
[1646516319669,1.53617904,2669.0,2668.8,0.0033192]
[1646516320634,1.53617904,2669.0,2668.5,0.1872]
[1646516320832,1.53617904,2669.0,2668.8,0.0033192]
[1646516321831,1.53617904,2669.0,2668.5,0.1872]
[1646516322131,1.53617904,2669.0,2668.8,0.00331919]
[1646516322932,1.53617904,2669.0,2668.5,0.1872]
[1646516323136,1.53617904,2669.0,2668.8,0.00331919]
[1646516323767,1.56341411,2669.0,2668.8,0.00331919]
[1646516323970,0.02723507,2669.0,2668.8,0.00331919]
[1646516324170,0.02723507,2669.0,2668.7,1.21857847]
[1646516324377,0.02723507,2669.0,2668.8,3.50331919]
[1646516325371,0.02723507,2669.0,2668.8,3.5]
[1646516325570,0.02723507,2669.0,2668.8,3.50331919]
[1646516326673,0.02723507,2669.0,2668.8,3.50207353]
[1646516327732,0.0257007,2669.0,2668.8,3.5]
[1646516327932,0.0257007,2669.0,2668.8,3.50207353]
[1646516328933,0.0257007,2669.0,2668.8,3.5]
[1646516329133,0.0257007,2669.0,2668.8,3.50353015]
[1646516330134,0.0257007,2669.0,2668.8,3.5]
[1646516330535,0.0257007,2669.0,2668.8,3.50362252]
[1646516331475,0.0257007,2669.0,2668.8,3.5]
[1646516331676,0.0257007,2669.0,2668.8,3.50362252]
[1646516332675,0.0257007,2669.0,2668.8,3.5]
[1646516332877,0.0257007,2669.0,2668.8,3.50362252]
[1646516333681,0.0257007,2669.0,2668.8,4.5]
[1646516333879,0.0257007,2669.0,2668.9,3.5]
[1646516342812,0.0257007,2669.0,2668.9,4.5]
[1646516344718,0.0257007,2669.0,2668.7,2.43757847]
[1646516344921,0.0257007,2669.0,2668.8,0.003517]
[1646516345720,0.0257007,2669.0,2668.7,1.219]
[1646516346167,0.0257007,2669.0,2668.8,0.00351704]
[1646516346168,1.20191353,2668.9,2668.8,0.00351704]
[1646516346974,1.20191353,2668.9,2668.5,3.06146]
[1646516347170,0.0257007,2669.0,2668.5,2.06146]
[1646516347369,0.0257007,2669.0,2668.7,0.00351708]
[1646516348178,0.0257007,2669.0,2668.5,4.21036]
[1646516348377,0.0257007,2669.0,2668.7,0.00351708]
[1646516348778,1.53612749,2668.9,2668.7,0.00351708]
[1646516349378,1.53612749,2668.9,2668.5,4.21036]
[1646516349576,1.53612749,2668.9,2668.7,0.00351712]
[1646516349819,1.53524213,2668.9,2668.7,0.00351712]
[1646516350620,1.53524213,2668.9,2668.5,4.21036]
[1646516352019,1.53524213,2668.9,2668.6,0.0035172]
[1646516352921,0.0257007,2669.0,2668.5,4.21036]
[1646516353319,0.0257007,2669.0,2668.6,0.00351716]
[1646516353762,0.01746263,2669.0,2668.6,0.00351716]
[1646516354162,0.01746263,2669.0,2668.5,7.71036]
[1646516354562,0.01746263,2669.0,2668.7,0.00351712]
[1646516355364,0.01746263,2669.0,2668.5,7.71036]
[1646516355565,0.01746263,2669.0,2668.7,0.00351418]
[1646516356566,0.01746263,2669.0,2668.5,7.71036]
[1646516356873,0.01746263,2669.0,2668.7,0.00351418]
[1646516357068,0.01746263,2669.0,2668.7,1.48062418]
[1646516357313,0.01746263,2669.0,2668.8,4.7365]
[1646516357519,0.01746263,2669.0,2668.9,4.04]
[1646516357917,0.01746263,2669.0,2668.9,5.04]
[1646516359121,0.02262866,2669.0,2668.9,5.04]
[1646516360321,0.02262866,2669.0,2668.9,5.4143]
[1646516363266,0.02262866,2669.0,2668.9,1.9143]
[1646516363666,0.02262866,2669.0,2668.9,0.9143]
[1646516367223,0.02262866,2669.0,2668.9,0.54]
[1646516372513,0.02137386,2669.0,2668.9,0.54]
[1646516373113,0.02137386,2669.0,2668.8,1.2365]
[1646516373715,0.02137386,2669.0,2668.8,1.24026216]
[1646516374716,0.02137386,2669.0,2668.9,0.54]
[1646516375419,0.00459458,2669.7,2669.0,0.3743]
[1646516375619,0.0035565,2669.7,2669.1,1.47689]
[1646516375819,0.00103808,2670.0,2669.1,2.61299]
[1646516375820,1.53578345,2669.9,2669.1,2.61299]
[1646516376077,0.00355675,2669.7,2669.1,2.61299]
[1646516376268,1.5393402,2669.7,2669.1,3.61299]
[1646516376468,1.53578345,2669.6,2669.4,0.97370055]
[1646516376668,0.00355675,2669.7,2669.3,0.54]
[1646516376971,1.53577946,2669.9,2669.3,0.54]
[1646516377371,0.00355683,2669.7,2669.3,0.54]
[1646516378171,1.53577946,2669.8,2669.3,0.54]
[1646516378373,1.53933629,2669.7,2669.3,0.54]
[1646516378573,1.53577946,2669.6,2669.3,0.54]
[1646516378772,0.00355683,2669.7,2669.3,0.54]
[1646516379376,1.53580858,2669.8,2669.2,1.04809305]
[1646516379578,1.53580858,2669.7,2669.2,1.07014571]
[1646516379819,1.53580858,2669.6,2669.2,1.07014571]
[1646516380022,0.00351343,2669.7,2669.2,1.07014571]
[1646516380623,1.53580124,2669.8,2669.2,1.07014571]
[1646516380922,1.53931464,2669.7,2669.2,1.07014571]
[1646516381123,1.53580124,2669.6,2669.2,1.07014571]
[1646516381322,0.0035134,2669.7,2669.2,1.07014571]
[1646516381823,1.53582095,2669.8,2669.2,1.07014571]
[1646516382024,1.53933435,2669.7,2669.2,1.07014571]
[1646516382223,1.53582095,2669.6,2669.2,1.07014571]
[1646516382424,0.0035134,2669.7,2669.2,1.07014571]
[1646516383032,1.53581973,2669.8,2669.2,1.07014571]
[1646516383228,1.53933606,2669.7,2669.2,1.07014571]
[1646516383427,1.53581973,2669.6,2669.2,1.07014571]
[1646516383667,0.00351633,2669.7,2669.2,1.07014571]
[1646516384271,1.53582579,2669.8,2669.2,1.07014571]
[1646516384472,1.53934212,2669.7,2669.4,0.02201]
[1646516384671,1.53582579,2669.6,2669.4,0.02201]
[1646516384873,0.00351633,2669.7,2669.4,0.02201]
[1646516385275,1.53932017,2669.7,2669.4,0.02201]
[1646516385475,1.53580384,2669.6,2669.4,0.02201]
[1646516385679,1.11482835,2670.0,2669.4,0.02201]
[1646516385680,0.00351636,2669.7,2669.4,0.02201]
[1646516386073,1.53932581,2669.7,2669.4,0.02201]
[1646516386273,1.53580945,2669.6,2669.4,0.02201]
[1646516386474,0.00351636,2669.7,2669.4,0.02201]
[1646516386673,1.53580918,2669.8,2669.4,0.02201]
[1646516386873,1.53932534,2669.7,2669.4,0.02201]
[1646516387073,1.53580918,2669.6,2669.4,0.02201]
[1646516387315,0.00351616,2669.7,2669.4,0.02201]
[1646516387816,1.53580093,2669.9,2669.4,0.02201]
[1646516388020,0.00351616,2669.7,2669.4,0.02201]
[1646516389019,1.53580093,2669.9,2669.5,0.02188212]
[1646516389221,0.00351616,2669.7,2669.5,0.02188212]
[1646516390224,1.53580093,2669.9,2669.5,0.02188212]
[1646516390425,0.00351813,2669.7,2669.5,0.02188212]
[1646516391470,1.53580093,2669.9,2669.5,0.02188212]
[1646516391672,0.00351813,2669.7,2669.5,0.02188212]
[1646516393776,1.53580093,2669.9,2669.5,0.02188212]
[1646516393977,1.53580093,2669.8,2669.5,0.02188212]
[1646516394176,1.53932277,2669.7,2669.5,0.02188212]
[1646516394379,0.00352184,2669.7,2669.6,0.02196734]
[1646516395025,1.53586855,2669.9,2669.6,0.02196734]
[1646516395223,1.53939035,2669.8,2669.6,0.02196734]